bitfinex/quotes_SOLUSD_20250305
["timestamp","ask_amount","ask_price","bid_price","bid_amount"]
[1741213421008,0.033,145.77,145.76,80.9]
[1741213423118,0.033,145.77,145.75,133.46]
[1741213427111,0.033,145.77,145.75,0.03]
[1741213433591,0.033,145.77,145.76,2.0]
[1741213435700,0.033,145.77,145.75,2.03]
[1741213436029,0.033,145.77,145.76,2.0]
[1741213437229,0.033,145.77,145.75,2.03]
[1741213437425,0.033,145.77,145.76,2.0]
[1741213437734,0.033,145.77,145.75,2.03]
[1741213437900,0.033,145.77,145.76,2.0]
[1741213439002,0.033,145.77,145.75,2.03]
[1741213439427,0.033,145.77,145.76,2.0]
[1741213439728,0.033,145.77,145.75,2.03]
[1741213440028,0.033,145.77,145.76,2.0]
[1741213440707,0.033,145.77,145.75,2.03]
[1741213441838,0.033,145.77,145.76,2.0]
[1741213444830,0.033,145.77,145.76,82.9]
[1741213449143,0.033,145.77,145.76,80.9]
[1741213459452,0.033,145.77,145.76,82.9]
[1741213459949,0.033,145.77,145.76,80.9]
[1741213477263,0.033,145.77,145.74,0.03]
[1741213483174,0.033,145.77,145.76,2.0]
[1741213485355,0.033,145.77,145.76,74.2678]
[1741213493172,0.033,145.77,145.76,72.2678]
[1741213498982,0.033,145.77,145.76,74.2678]
[1741213499185,0.033,145.77,145.76,72.2678]
[1741213500361,0.033,145.77,145.76,74.2678]
[1741213500583,0.033,145.77,145.76,75.7081568]
[1741213501178,0.033,145.77,145.76,75.70784943]
[1741213501373,0.033,145.77,145.76,74.2678]
[1741213504391,0.033,145.77,145.76,207.6978]
[1741213513103,0.033,145.77,145.76,226.34744886]
[1741213513678,0.033,145.77,145.76,233.20794886]
[1741213513880,0.033,145.77,145.76,226.34744886]
[1741213514290,0.033,145.77,145.76,233.20794886]
[1741213514488,0.033,145.77,145.76,226.48961043]
[1741213514800,0.033,145.78,145.77,20.79181043]
[1741213514984,0.033,145.78,145.77,246.6336313]
[1741213515185,0.033,145.78,145.77,245.19396739]
[1741213517619,0.033,145.78,145.77,557.19396739]
[1741213528720,0.033,145.78,145.77,557.47829053]
[1741213528921,0.033,145.79,145.78,100.028372]
[1741213529096,0.033,145.79,145.78,142.48627485]
[1741213529296,0.033,145.79,145.78,146.0144521]
[1741213529996,0.033,145.81,145.8,20.0]
[1741213530203,0.033,145.81,145.8,238.02439975]
[1741213530504,0.033,145.81,145.8,236.58519053]
[1741213531123,0.033,145.81,145.8,238.58519053]
[1741213531322,0.033,145.81,145.8,245.44389053]
[1741213531933,0.033,145.81,145.8,557.44389053]
[1741213532230,0.033,145.81,145.8,557.5860521]
[1741213532407,0.033,145.81,145.8,589.8852521]
[1741213533728,0.033,145.84,145.83,22.28432314]
[1741213533912,0.033,145.84,145.83,259.88188974]
[1741213534222,0.033,145.84,145.83,258.44302896]
[1741213535320,0.033,145.84,145.83,265.30022896]
[1741213537829,0.033,145.84,145.83,579.30022896]
[1741213538033,0.033,145.84,145.83,598.2345521]
[1741213538217,0.033,145.84,145.83,600.2345521]
[1741213538807,0.033,145.84,145.83,615.1834521]
[1741213541036,0.033,145.84,145.83,613.1834521]
[1741213541245,0.033,145.84,145.83,615.1834521]
[1741213542849,0.033,145.92,145.86,0.28432314]
[1741213543040,0.033,145.92,145.88,0.14216157]
[1741213543241,0.033,145.92,145.89,20.08831815]
[1741213543432,0.033,145.92,145.89,225.72011815]
[1741213543637,0.033,145.92,145.89,224.28144886]
[1741213544646,0.033,145.92,145.91,2.0]
[1741213544849,0.033,145.92,145.91,209.07038745]
[1741213545022,0.033,145.92,145.91,207.6318]
[1741213547123,0.033,145.92,145.91,226.28144886]
[1741213550152,0.033,145.92,145.91,233.13494886]
[1741213550649,0.033,145.92,145.91,226.28144886]
[1741213551154,0.033,145.92,145.91,233.27711043]
[1741213552538,0.033,145.92,145.91,245.12136739]
[1741213553554,0.033,145.92,145.91,233.27711043]
[1741213553754,0.033,145.92,145.91,207.6318]
[1741213572083,4.7104,145.91,145.87,0.2145]
[1741213572289,4.7104,145.91,145.85,0.2145]
[1741213572468,9.36799531,145.9,145.85,0.2145]
[1741213572700,9.36799531,145.9,145.84,72.2318]
[1741213572868,9.0858,145.89,145.84,72.2318]
[1741213582872,4.7104,145.91,145.84,72.2318]
[1741213584466,4.7104,145.91,145.84,205.6618]
[1741213587992,4.7104,145.91,145.85,18.64964886]
[1741213589007,4.7104,145.91,145.85,20.08888581]
[1741213589573,0.033,145.92,145.86,0.14216157]
[1741213589775,0.033,145.92,145.88,18.64964886]
[1741213590099,0.033,145.92,145.88,224.28144886]
[1741213601105,0.033,145.92,145.89,1.43886185]
[1741213602199,0.033,145.92,145.89,207.07066185]
[1741213602497,0.033,145.92,145.89,205.6318]
[1741213603795,0.033,145.92,145.9,20.08839877]
[1741213608125,0.033,145.92,145.9,225.72019877]
[1741213608324,0.033,145.92,145.9,224.28144886]
[1741213608502,0.033,145.92,145.91,20.08830312]
[1741213608702,0.033,145.92,145.91,225.72010312]
[1741213609000,0.033,145.92,145.91,224.28144886]
[1741213628242,0.033,145.92,145.91,231.13494886]
[1741213628915,0.033,145.92,145.91,224.28144886]
[1741213644730,0.033,145.92,145.91,205.6318]
[1741213646559,0.033,145.92,145.91,72.2018]
[1741213664679,0.033,145.92,145.91,72.2018]
[1741213665781,0.033,145.92,145.87,205.6318]
[1741213665945,0.033,145.92,145.87,72.2018]
[1741213667673,0.033,145.92,145.85,90.88144886]
[1741213667857,13.9429,145.91,145.85,0.03]
[1741213668060,23.31089531,145.91,145.85,0.03]
[1741213669057,104.31089531,145.91,145.84,72.2318]
[1741213669270,104.31089531,145.91,145.84,0.03]
[1741213669575,111.08398024,145.91,145.79,18.64964886]
[1741213669783,81.0,145.9,145.79,224.28144886]
[1741213669974,90.36799531,145.9,145.79,224.28144886]
[1741213670299,9.36799531,145.89,145.79,205.6318]
[1741213670457,4.6077,145.88,145.79,205.6318]
[1741213670656,4.6077,145.88,145.79,72.2018]
[1741213671666,13.97569531,145.88,145.79,72.2018]
[1741213671987,100.16299531,145.87,145.79,72.2018]
[1741213672182,100.16299531,145.87,145.78,72.2318]
[1741213672387,4.7996,145.86,145.78,72.2318]
[1741213672680,9.36799531,145.85,145.78,72.2318]
[1741213675670,81.0,145.84,145.78,0.0001]
[1741213676459,86.50312654,145.84,145.78,0.0001]
[1741213677895,81.0,145.84,145.78,0.0001]
[1741213680964,86.48614668,145.84,145.78,0.0001]
[1741213685281,81.0,145.84,145.78,0.0001]
[1741213685589,12.83567068,145.85,145.78,72.2019]
[1741213694905,12.86867068,145.85,145.78,72.2019]
[1741213711808,14.7438,145.83,145.78,51.7581]
[1741213712410,14.7438,145.83,145.78,47.6693]
[1741213713613,14.7438,145.83,145.78,46.8515]
[1741213713813,14.7438,145.83,145.78,46.688]
[1741213715113,95.7438,145.83,145.77,0.03]
[1741213718021,18.64964886,145.82,145.75,46.718]
[1741213718320,85.95,145.81,145.75,0.03]
[1741213718502,18.64964886,145.8,145.75,0.01902946]
[1741213718700,18.64964886,145.8,145.77,0.03]
[1741213719096,13.7701,145.79,145.77,0.03]
[1741213721618,81.0,145.78,145.77,0.03]
[1741213722015,99.64964886,145.78,145.77,0.03]
[1741213723526,81.0,145.78,145.77,0.03]
[1741213724215,3.49549301,145.79,145.77,0.03]
[1741213724426,15.42932578,145.8,145.77,0.03]
[1741213725328,10.65923078,145.81,145.77,0.03]
[1741213728632,8.26432595,145.83,145.77,0.03]
[1741213738944,8.26432595,145.83,145.77,46.718]
[1741213744825,81.0,145.82,145.77,0.03]
[1741213757253,18.64964886,145.81,145.77,0.03]
[1741213759754,81.0,145.8,145.77,0.03]
[1741213761949,18.64964886,145.79,145.77,0.03]
[1741213762128,99.64964886,145.79,145.77,0.03]
[1741213764458,103.10041607,145.79,145.77,0.03]
[1741213765674,81.0,145.78,145.77,0.03]
[1741213766873,81.0,145.78,145.75,0.01902946]
[1741213789478,81.033,145.78,145.75,0.01902946]
[1741213802361,0.033,145.78,145.75,0.01902946]
[1741213802762,0.033,145.78,145.76,11.84425696]
[1741213802961,26.08855656,145.8,145.77,44.90820582]
[1741213803183,26.08855656,145.8,145.79,11.84425696]
[1741213803676,10.65923078,145.8,145.79,16.58035696]
[1741213803883,10.65923078,145.81,145.79,16.58035696]
[1741213804064,10.65923078,145.81,145.8,30.49390582]
[1741213804267,10.65923078,145.81,145.8,77.18190582]
[1741213804966,10.65923078,145.81,145.8,65.33764886]
[1741213807193,0.033,145.82,145.8,65.33764886]
[1741213821403,0.033,145.82,145.8,46.688]
[1741213823683,0.033,145.82,145.8,48.12777701]
[1741213823884,0.033,145.82,145.81,18.64964886]
[1741213824104,0.033,145.82,145.81,198.76764886]
[1741213824318,0.033,145.82,145.81,220.63726739]
[1741213824816,0.033,145.84,145.83,41.66201043]
[1741213825110,0.033,145.84,145.83,235.06338807]
[1741213825313,0.033,145.84,145.83,213.62426739]
[1741213826011,0.033,145.85,145.84,18.64964886]
[1741213826195,0.033,145.85,145.84,40.13290582]
[1741213826388,0.033,145.85,145.84,41.57201148]
[1741213827417,0.033,145.85,145.84,353.57201148]
[1741213827620,0.033,145.85,145.84,352.13290582]
[1741213827801,0.033,145.85,145.84,340.28864886]
[1741213828006,0.033,145.85,145.84,520.40664886]
[1741213831319,0.033,145.85,145.84,208.40664886]
[1741213833521,0.033,145.85,145.84,220.25090582]
[1741213833706,0.033,145.85,145.84,208.40664886]
[1741213840938,0.033,145.85,145.84,208.83313357]
[1741213841223,0.033,145.85,145.84,220.67739053]
[1741213843533,0.033,145.85,145.84,532.67739053]
[1741213844716,0.033,145.85,145.84,539.53419053]
[1741213847336,0.033,145.85,145.84,539.56419053]
[1741213855136,0.033,145.85,145.84,541.7063521]
[1741213855535,0.033,145.85,145.84,539.7063521]
[1741213859144,0.033,145.85,145.84,541.7063521]
[1741213859320,0.033,145.85,145.84,589.08337994]
[1741213860736,0.033,145.92,145.86,19.07613357]
[1741213860942,0.033,145.92,145.89,0.14216157]
[1741213861122,0.033,145.92,145.89,181.6658853]
[1741213861322,0.033,145.92,145.89,180.22716157]
[1741213863047,0.033,145.92,145.91,18.64964886]
[1741213866648,0.033,145.92,145.91,198.73464886]
[1741213867844,0.033,145.92,145.91,180.085]
[1741213871544,0.033,145.92,145.87,180.085]
[1741213873545,0.033,145.92,145.87,46.655]
[1741213890372,0.033,145.92,145.87,180.085]
[1741213911766,0.033,145.92,145.88,20.08874807]
[1741213914267,0.033,145.92,145.88,200.17374807]
[1741213914473,0.033,145.92,145.88,198.73464886]
[1741213914672,0.033,145.92,145.89,1.43887783]
[1741213915183,0.033,145.92,145.9,18.64964886]
[1741213916466,0.033,145.92,145.9,20.08848643]
[1741213920157,0.033,145.92,145.9,200.17348643]
[1741213920357,0.033,145.92,145.9,198.73464886]
[1741213920782,0.033,145.92,145.91,1.43878736]
[1741213922379,0.033,145.92,145.91,181.52378736]
[1741213922576,0.033,145.92,145.91,198.87681043]
[1741213923462,0.033,145.92,145.91,510.87681043]
[1741213931397,0.033,145.92,145.91,517.73031043]
[1741213934903,0.033,145.92,145.91,510.87681043]
[1741213935791,0.033,145.92,145.91,529.57456739]
[1741213936600,0.033,145.92,145.91,517.73031043]
[1741213937425,0.033,145.92,145.91,529.57456739]
[1741213939600,0.033,145.92,145.91,529.85889053]
[1741213940299,0.033,145.92,145.91,217.85889053]
[1741213943303,0.033,145.92,145.91,529.85889053]
[1741213944206,0.033,145.92,145.91,217.85889053]
[1741213947106,0.033,145.92,145.91,529.85889053]
[1741213954708,0.033,145.92,145.91,18.69775696]
[1741213954908,9.40099531,145.92,145.85,133.46]
[1741213955090,4.8609,145.9,145.84,0.03]
[1741213955291,10.815472,145.89,145.8,247.61273452]
[1741213955496,9.9673,145.88,145.8,114.18273452]
[1741213955692,19.33529531,145.88,145.8,110.73905228]
[1741213955899,34.16744509,145.87,145.8,110.73905228]
[1741213956798,100.25887438,145.86,145.8,46.655]
[1741213957902,13.49002964,145.85,145.8,46.655]
[1741213958896,47.52629012,145.85,145.8,46.655]
[1741213959122,47.52629012,145.85,145.78,152.10964886]
[1741213959605,13.49002964,145.84,145.78,128.2238039]
[1741213959796,13.49002964,145.84,145.78,46.655]
[1741213959996,10.72917231,145.79,145.78,13.21481227]
[1741213960511,4.9451,145.82,145.78,13.21481227]
[1741213968429,8.44131732,145.82,145.78,13.21481227]
[1741213970737,9.5907,145.81,145.78,13.21481227]
[1741213972425,9.5907,145.81,145.75,109.5931845]
[1741213973226,42.80646364,145.84,145.78,0.14216157]
[1741213973408,42.80646364,145.84,145.79,11.84425696]
[1741213973906,66.96255394,145.87,145.78,94.32630214]
[1741213974108,66.96255394,145.87,145.79,6.8591]
[1741213974524,66.96255394,145.87,145.79,318.8591]
[1741213974945,66.96255394,145.87,145.81,11.84425696]
[1741213975249,62.16005394,145.87,145.81,202.318412]
[1741213976113,9.7077,145.89,145.82,6.8577]
[1741213976324,9.7077,145.89,145.82,8.29720506]
[1741213978628,81.0,145.9,145.82,8.29720506]
[1741213978928,4.8025,145.91,145.82,89.19720506]
[1741213979833,8.28717617,145.91,145.82,89.19720506]
[1741213980045,0.033,145.89,145.82,101.04146202]
[1741213980334,0.033,145.89,145.84,6.8568]
[1741213981120,0.033,145.89,145.84,8.29611515]
[1741213984555,0.033,145.89,145.84,198.77027019]
[1741213984759,0.033,145.89,145.84,197.33095504]
[1741213984920,0.033,145.89,145.86,6.8558]
[1741213985247,0.033,145.89,145.86,87.7558]
[1741213985458,0.033,145.89,145.87,1.439088]
[1741213985817,0.033,145.89,145.87,191.91324304]
[1741213986040,0.033,145.89,145.88,1.43894838]
[1741213986920,0.033,145.89,145.88,8.29384838]
[1741213987854,0.033,145.89,145.88,1.43894838]
[1741213989828,0.033,145.89,145.88,229.40407081]
[1741213990058,0.033,145.89,145.88,227.96512243]
[1741213990264,0.033,145.89,145.88,242.37852243]
[1741213990454,0.033,145.89,145.88,133.08869053]
[1741213990654,0.033,145.89,145.88,134.66934197]
[1741213990963,0.033,145.92,145.91,38.79181043]
[1741213991136,0.033,145.92,145.91,269.87437676]
[1741213991325,0.033,145.92,145.91,268.8625521]
[1741213991856,0.033,145.92,145.91,275.7160521]
[1741213992061,0.033,145.92,145.91,280.6622521]
[1741213992855,0.033,145.92,145.91,592.6622521]
[1741213995460,4.6281,146.03,145.92,19.07613357]
[1741213995655,4.6281,146.03,145.93,7.57815244]
[1741213997948,4.6281,146.03,145.93,19.4224094]
[1741214000479,4.6281,146.03,145.93,237.2224094]
[1741214000640,4.6281,146.03,145.93,235.78425696]
[1741214000846,4.6281,146.03,145.95,18.79181043]
[1741214001043,4.6281,146.03,145.95,236.59181043]
[1741214002475,4.6281,146.03,145.95,217.8]
[1741214003696,87.07557669,146.03,145.95,80.9]
[1741214004397,87.07557669,146.03,145.95,57.03866456]
[1741214004398,97.804749,146.03,145.95,57.03866456]
[1741214004546,99.64964886,146.02,145.92,57.03866456]
[1741214006075,99.64964886,146.02,145.93,0.03]
[1741214007379,96.58737669,146.01,145.93,0.03]
[1741214007581,105.955372,146.01,145.93,0.03]
[1741214007877,18.64964886,145.99,145.93,0.03]
[1741214008175,99.64964886,145.99,145.93,0.03]
[1741214015378,4.7285,145.98,145.93,0.03]
[1741214017864,4.7285,145.98,145.93,57.06866456]
[1741214018367,28.66954288,146.01,145.93,57.06866456]
[1741214018955,28.66954288,146.01,145.93,58.50713679]
[1741214020196,25.16599691,146.01,145.93,58.50713679]
[1741214020901,25.16599691,146.01,145.93,57.06866456]
[1741214024196,18.49669531,146.01,145.93,57.06866456]
[1741214024369,18.49669531,146.01,145.93,58.50709086]
[1741214027689,18.49669531,146.01,145.93,57.06866456]
[1741214029685,18.52969531,146.01,145.93,57.06866456]
[1741214031102,29.25886762,146.01,145.93,57.06866456]
[1741214031297,29.25886762,146.01,145.93,193.96866456]
[1741214033493,19.89087231,146.01,145.94,0.14216157]
[1741214033801,19.89087231,146.01,145.93,193.96866456]
[1741214036501,100.89087231,146.01,145.93,57.06866456]
[1741214037390,127.10231077,146.01,145.93,57.06866456]
[1741214037585,10.72917231,145.98,145.93,57.06866456]
[1741214038498,9.9609,145.97,145.93,57.06866456]
[1741214040005,10.72917231,145.94,145.93,33.19977977]
[1741214040208,10.72917231,145.94,145.89,170.09977977]
[1741214040405,10.72917231,145.94,145.89,33.19977977]
[1741214041211,9.9609,145.97,145.89,33.19977977]
[1741214041417,20.09716762,145.98,145.9,30.63606739]
[1741214041704,10.72917231,145.98,145.9,32.07500509]
[1741214042307,10.72917231,145.98,145.91,11.84425696]
[1741214042512,10.72917231,145.98,145.92,1.58066697]
[1741214042698,10.72917231,145.98,145.92,171.68044674]
[1741214042903,10.72917231,145.98,145.93,0.03]
[1741214043537,4.831,145.99,145.93,0.03]
[1741214044426,4.831,145.99,145.93,312.03]
[1741214044614,90.7267,146.01,145.93,312.03]
[1741214044921,90.7267,146.01,145.93,345.22977977]
[1741214045106,9.7267,146.01,145.93,493.97403673]
[1741214045623,9.7267,146.01,145.94,1.43835639]
[1741214045811,0.033,146.01,145.94,1.58050373]
[1741214045998,0.033,146.01,145.94,178.5319835]
[1741214046187,0.033,146.01,145.96,0.14216157]
[1741214046390,0.033,146.01,145.96,171.68000035]
[1741214046613,0.033,146.01,145.97,1.43805746]
[1741214047016,0.033,146.01,145.98,0.14216157]
[1741214049514,0.033,146.01,145.98,312.14216157]
[1741214050900,0.033,146.01,145.98,482.24194134]
[1741214051112,0.033,146.01,145.98,33.19977977]
[1741214053216,0.033,146.01,145.99,0.14216157]
[1741214053410,0.033,146.01,145.99,171.67987312]
[1741214053610,0.033,146.01,145.99,170.24194134]
[1741214054123,0.033,146.01,145.99,482.24194134]
[1741214056735,0.033,146.01,145.99,170.24194134]
[1741214056908,0.033,146.01,145.99,170.09977977]
[1741214058009,0.033,146.01,145.99,33.19977977]
[1741214062936,0.033,146.01,145.95,33.19977977]
[1741214065034,0.033,146.01,145.93,33.22977977]
[1741214065221,5.0297,146.01,145.93,33.22977977]
[1741214069433,5.0297,146.01,145.93,51.92643673]
[1741214071537,5.0297,146.01,145.93,40.08217977]
[1741214074249,5.0297,146.01,145.93,45.07403673]
[1741214075047,5.0297,146.01,145.93,33.22977977]
[1741214076450,5.0297,146.01,145.93,40.08227977]
[1741214077448,0.033,146.01,145.99,18.79181043]
[1741214077641,0.033,146.01,145.99,170.09977977]
[1741214078157,0.033,146.01,145.96,33.19977977]
[1741214079345,0.033,146.01,145.96,51.89513673]
[1741214080353,0.033,146.01,145.96,363.89513673]
[1741214082351,0.033,146.01,145.97,18.69485696]
[1741214082558,0.033,146.01,145.98,11.84425696]
[1741214082855,0.033,146.01,145.99,30.63606739]
[1741214083042,0.033,146.01,145.99,63.83584716]
[1741214085357,0.033,146.01,145.99,375.83584716]
[1741214085538,0.033,146.01,145.99,382.68544716]
[1741214086557,0.033,146.01,145.99,519.58544716]
[1741214087351,0.033,146.01,145.99,512.73584716]
[1741214088441,0.033,146.01,145.99,207.58554716]
[1741214089658,0.033,146.01,146.0,32.07392149]
[1741214090539,0.033,146.01,146.0,38.92322149]
[1741214091361,0.033,146.01,146.0,350.92322149]
[1741214091666,0.033,146.01,146.0,349.48536739]
[1741214092539,0.033,146.01,146.0,519.58514716]
[1741214095660,0.033,146.01,146.0,207.58514716]
[1741214096162,0.033,146.01,146.0,270.07195971]
[1741214097266,0.033,146.01,146.0,210.4241902]
[1741214097466,0.033,146.01,146.0,222.26844716]
[1741214098761,0.033,146.01,146.0,534.26844716]
[1741214100972,0.033,146.01,146.0,270.07195971]
[1741214103884,0.033,146.01,146.0,582.07195971]
[1741214112465,0.033,146.03,146.02,0.42648471]
[1741214112775,0.033,146.07,146.06,18.79181043]
[1741214113072,0.033,146.07,146.06,202.1728798]
[1741214113270,0.033,146.07,146.06,200.73584716]
[1741214114676,0.033,146.07,146.06,207.58234716]
[1741214115579,0.033,146.07,146.06,519.58234716]
[1741214119699,0.033,146.07,146.06,207.58234716]
[1741214122795,0.033,146.07,146.06,519.58234716]
[1741214126491,0.033,146.07,146.06,512.73584716]
[1741214126793,0.033,146.07,146.06,200.73584716]
[1741214127507,0.033,146.07,146.06,33.19977977]
[1741214130688,0.033,146.07,146.06,45.04403673]
[1741214131186,0.033,146.07,146.06,33.19977977]
[1741214131409,0.033,146.07,146.06,45.04403673]
[1741214133312,0.033,146.07,146.06,33.19977977]
[1741214143204,9.7402,146.04,145.94,5.0985]
[1741214143405,92.51342875,146.03,145.94,5.0985]
[1741214143605,18.64964886,146.02,145.94,5.0985]
[1741214143815,18.64964886,146.02,145.93,0.03]
[1741214143816,10.0226,146.0,145.93,0.03]
[1741214144016,1.44747669,145.99,145.93,0.03]
[1741214146026,5.11162895,145.98,145.93,0.03]
[1741214147529,5.11162895,145.97,145.93,0.03]
[1741214149126,5.11162895,145.96,145.93,0.03]
[1741214149500,5.11162895,145.96,145.93,11.87425696]
[1741214150111,5.11162895,145.95,145.93,11.87425696]
[1741214150317,5.11162895,145.95,145.93,0.03]
[1741214151731,0.6613,146.01,145.93,0.03]
[1741214151919,0.6613,146.01,145.93,33.22977977]
[1741214152110,0.6613,146.01,145.93,345.22977977]
[1741214152634,5.08633392,146.0,145.93,345.22977977]
[1741214152929,5.08633392,146.0,145.93,357.07403673]
[1741214153928,5.08633392,145.99,145.93,357.07403673]
[1741214154131,5.08633392,145.99,145.93,45.07403673]
[1741214154327,5.08633392,145.99,145.94,11.84425696]
[1741214154834,5.08633392,145.99,145.94,45.04403673]
[1741214155234,5.08633392,145.98,145.94,45.04403673]
[1741214156622,0.6613,146.01,145.94,45.04403673]
[1741214157935,5.07770623,146.0,145.94,45.04403673]
[1741214159234,5.07770623,145.99,145.94,45.04403673]
[1741214160437,5.07770623,145.98,145.94,45.04403673]
[1741214161730,0.6613,146.01,145.94,45.04403673]
[1741214162113,0.6613,146.01,145.95,11.84425696]
[1741214162615,91.73427669,146.03,145.97,11.84425696]
[1741214162815,5.07654278,146.0,145.97,11.84425696]
[1741214163835,5.07654278,145.99,145.96,0.14216157]
[1741214165133,5.07654278,146.02,145.98,11.84425696]
[1741214165337,5.07654278,146.02,146.0,11.84425696]
[1741214165518,5.07654278,146.02,146.0,45.04403673]
[1741214166032,0.033,146.03,146.0,45.04403673]
[1741214166338,1.48047669,146.07,146.03,0.14216157]
[1741214166630,0.033,146.07,146.05,11.84425696]
[1741214167212,0.033,146.07,146.05,45.04403673]
[1741214168941,0.033,146.07,146.06,11.84425696]
[1741214178055,0.033,146.07,146.01,31.61824886]
[1741214178056,81.0,146.05,146.0,35.53277088]
[1741214178223,18.64964886,145.99,145.94,0.03]
[1741214178539,18.64964886,145.99,145.93,0.03]
[1741214178540,92.97398928,145.98,145.92,11.84425696]
[1741214178745,1.44747669,145.98,145.92,11.84425696]
[1741214178949,1.44747669,146.0,145.92,11.84425696]
[1741214179122,1.44747669,146.0,145.91,11.84425696]
[1741214179422,5.0864782,145.97,145.91,11.84425696]
[1741214179622,5.0864782,145.97,145.91,323.84425696]
[1741214179822,5.0864782,145.97,145.91,312.0]
[1741214180041,5.0864782,145.97,145.91,323.84425696]
[1741214180424,1.44747669,146.0,145.91,323.84425696]
[1741214180425,5.0864782,145.96,145.91,323.84425696]
[1741214180846,5.0864782,145.96,145.93,11.84425696]
[1741214181740,5.0864782,145.95,145.94,11.84425696]
[1741214183050,5.0864782,145.95,145.93,11.84425696]
[1741214184253,1.44747669,145.98,145.93,11.84425696]
[1741214184433,81.0,145.97,145.93,11.84425696]
[1741214185345,5.08553415,145.96,145.93,11.84425696]
[1741214186138,81.0,145.99,145.95,11.84425696]
[1741214186345,81.0,145.99,145.98,11.84425696]
[1741214186538,81.0,146.06,145.96,11.84425696]
[1741214186853,82.44747669,146.05,145.96,11.84425696]
[1741214187049,18.64964886,146.04,145.97,11.84425696]
[1741214187253,1.44747669,146.03,145.97,11.84425696]
[1741214187430,81.0,146.02,145.97,11.84425696]
[1741214187836,86.08590686,146.02,145.97,323.84425696]
[1741214188136,86.08590686,146.02,145.98,11.84425696]
[1741214188347,86.08590686,146.02,145.99,11.84425696]
[1741214188561,86.08590686,146.02,145.98,11.84425696]
[1741214189053,5.08590686,146.01,145.98,11.84425696]
[1741214190442,5.08590686,146.0,145.98,11.84425696]
[1741214191329,5.08590686,146.0,145.98,323.84425696]
[1741214191748,5.08590686,146.01,145.98,323.84425696]
[1741214192355,5.08590686,146.01,146.0,11.84425696]
[1741214192751,5.08590686,146.01,146.0,59.2212848]
[1741214193059,5.08590686,146.01,146.0,11.84425696]
[1741214194138,5.08590686,146.01,146.0,59.2212848]
[1741214194564,5.08590686,146.01,146.0,36.92019534]
[1741214194861,5.08590686,146.05,146.0,18.46009767]
[1741214195063,5.08590686,146.05,146.03,18.46009767]
[1741214195463,5.08590686,146.05,146.03,330.46009767]
[1741214196570,5.08590686,146.05,146.04,18.46009767]
[1741214198953,81.0,146.06,146.04,18.46009767]
[1741214199157,81.0,146.06,146.05,18.46009767]
[1741214200573,86.08970379,146.06,146.05,18.46009767]
[1741214201174,5.08970379,146.06,146.05,18.46009767]
[1741214203573,5.08970379,146.06,146.04,18.46009767]
[1741214203774,5.08970379,146.06,146.01,0.14216157]
[1741214203775,5.08970379,146.06,146.05,18.46009767]
[1741214204271,5.08970379,146.06,146.05,330.46009767]
[1741214206472,5.08970379,146.06,146.05,18.46009767]
[1741214206669,0.033,146.07,146.06,18.46009767]
[1741214209266,81.0,146.13,146.06,36.92019534]
[1741214209457,81.0,146.12,146.08,18.46009767]
[1741214210075,81.0,146.11,146.08,18.46009767]
[1741214210269,81.0,146.11,146.1,18.46009767]
[1741214213088,0.033,146.12,146.1,330.46009767]
[1741214213387,0.033,146.12,146.11,18.46009767]
[1741214216569,0.033,146.12,146.11,11.79955217]
[1741214221468,5.11336093,146.12,146.11,11.79955217]
[1741214221667,5.11336093,146.12,146.09,11.79955217]
[1741214222684,5.11336093,146.12,146.11,11.79955217]
[1741214223193,0.033,146.12,146.11,11.79955217]
[1741214224960,0.033,146.12,146.11,323.79955217]
[1741214225168,0.033,146.14,146.13,0.14216157]
[1741214225397,0.4,146.15,146.14,0.14216157]